fUSD/lending_fUSD_20250410
["ID","MTS","AMOUNT","RATE_DAILY","PERIOD"]
[357651028,1744273630224,-165.78644453,0.00019999,2]
[357651029,1744273630248,-500.0,0.00019999,2]
[357651030,1744273630272,-216.67796942,0.00019999,2]
[357651031,1744273630297,-500.0,0.00019999,2]
[357651032,1744273630322,-380.4868736,0.00019999,2]
[357651033,1744273630345,-500.0,0.00019999,2]
[357651034,1744273630368,-500.0,0.00019999,2]
[357651035,1744273630394,-243443.76214634,0.0002,2]
[357651036,1744273632470,-5583.8147163,0.0002,2]
[357651037,1744273632491,-1841.49016038,0.0002001,2]
[357651038,1744273633109,-412.97395656,0.0002001,2]
[357651039,1744273633130,-150.0,0.00020999,2]
[357651040,1744273633151,-758.20812693,0.00021,2]
[357651041,1744273636103,-1155.24797581,0.00021,2]
[357651042,1744273653338,-1030.10575766,0.00021,2]
[357651045,1744273680266,672.99661347,0.0001,2]
[357651053,1744273716266,-6103.70999295,0.00015,2]
[357651054,1744273716327,-395.32711066,0.00015,2]
[357651058,1744273748159,-300.0,0.00014999,2]
[357651059,1744273748181,-7859.996362,0.00015,2]
[357651060,1744273749070,-44261.07182,0.00015,2]
[357651061,1744273752106,-61074.99060106,0.00015,2]
[357651062,1744273752136,-561.43836964,0.00015,2]
[357651063,1744273752158,-280.95104296,0.0002001,2]
[357651064,1744273752178,-5661.8461565,0.00020937,2]
[357651065,1744273752199,-2769.06137135,0.00021,2]
[357651066,1744273752219,-250.0,0.0002189,2]
[357651067,1744273752240,-457.95,0.00024,5]
[357651068,1744273752260,-1000.0,0.00025452,2]
[357651069,1744273752281,-160.42,0.00026849,2]
[357651070,1744273752302,-19320.31985955,0.000294,2]
[357651071,1744273755105,-4103.33260856,0.000294,2]
[357651072,1744273755227,-15909.34753189,0.000294,2]
[357651073,1744273755247,-250.0,0.00029534,2]
[357651074,1744273755268,-228.54883316,0.0002999,2]
[357651075,1744273755289,-151.6745786,0.00029999,2]
[357651076,1744273755309,-500.0,0.00029999,2]
[357651077,1744273755329,-500.0,0.00029999,2]
[357651078,1744273755348,-516.34081152,0.00029999,2]
[357651079,1744273755369,-5558.0,0.0003,3]
[357651080,1744273755389,-5558.0,0.000307,5]
[357651081,1744273755408,-500.0,0.00030959,2]
[357651082,1744273755429,-152.83211499,0.00032833,5]
[357651083,1744273755449,-575.0,0.00033241,2]
[357651084,1744273755469,-2045.0,0.00033241,2]
[357651085,1744273755489,-300.07,0.00034114,5]
[357651086,1744273755511,-500.0,0.00034247,7]
[357651087,1744273755532,-500.0,0.00034247,7]
[357651088,1744273755555,-500.0,0.00034247,7]
[357651089,1744273755577,-500.0,0.00034247,7]
[357651090,1744273755599,-500.0,0.00034247,7]
[357651091,1744273755622,-500.0,0.00034247,7]
[357651092,1744273755832,-500.0,0.00034247,7]
[357651093,1744273755860,-500.0,0.00034247,7]
[357651094,1744273755882,-500.0,0.00034247,7]
[357651095,1744273755904,-500.0,0.00034247,7]
[357651096,1744273755925,-453.18007088,0.00034247,7]
[357651097,1744273755946,-887.07898515,0.00034247,7]
[357651098,1744273755967,-887.07898515,0.00034247,7]
[357651099,1744273755988,-887.07898515,0.00034247,7]
[357651100,1744273756009,-887.07898515,0.00034247,7]
[357651101,1744273756030,-887.07898515,0.00034247,7]
[357651102,1744273756051,-887.07898515,0.00034247,7]
[357651103,1744273756072,-887.07898515,0.00034247,7]
[357651104,1744273756094,-887.07898515,0.00034247,7]
[357651105,1744273756115,-887.07898515,0.00034247,7]
[357651106,1744273756135,-1279.11066569,0.00034247,7]
[357651107,1744273756155,-500.0,0.00034515,2]
[357651108,1744273756184,578.0,0.0001991,2]
[357651109,1744273770074,-300.15,0.00034948,5]
[357651110,1744273770095,-772.41705734,0.00035,4]
[357651111,1744273770115,-160.93,0.00035,2]
[357651112,1744273770136,-582.2243143,0.000356,30]
[357651113,1744273770158,-578.90566857,0.00035616,7]
[357651114,1744273770179,-578.90566857,0.00035616,7]
[357651115,1744273770201,-578.90566857,0.00035616,7]
[357651116,1744273770222,-578.90566857,0.00035616,7]
[357651117,1744273770243,-578.90566857,0.00035616,7]
[357651118,1744273770263,-578.90566857,0.00035616,7]
[357651119,1744273770283,-578.90566857,0.00035616,7]
[357651120,1744273770303,-578.90566857,0.00035616,7]
[357651121,1744273770324,-578.90566857,0.00035616,7]
[357651122,1744273770545,-578.90566857,0.00035616,7]
[357651123,1744273770567,-578.90566857,0.00035616,7]
[357651124,1744273770589,-578.90566857,0.00035616,7]
[357651125,1744273770610,-578.90566857,0.00035616,7]
[357651126,1744273770632,-578.90566857,0.00035616,7]
[357651127,1744273770654,-578.90566857,0.00035616,7]
[357651128,1744273770678,-578.90566857,0.00035616,7]
[357651129,1744273770699,-578.90566857,0.00035616,7]
[357651130,1744273770724,-351.64930146,0.00035616,7]
[357651131,1744273772128,1513.41662024,0.00029199,2]
[357651132,1744273772149,1515.85848284,0.00029199,2]
[357651221,1744273838284,-302.74,0.00034616,5]
[357651222,1744273838294,-413.0,0.00035615,2]
[357651223,1744273838303,-227.25636711,0.00035616,7]
[357651224,1744273838312,-578.90566857,0.00035616,7]
[357651225,1744273838321,-578.90566857,0.00035616,7]
[357651226,1744273838331,-578.90566857,0.00035616,7]
[357651227,1744273838340,-578.90566857,0.00035616,7]
[357651228,1744273838349,-578.90566857,0.00035616,7]
[357651229,1744273838358,-578.90566857,0.00035616,7]
[357651230,1744273838367,-20.81844996,0.00035616,7]
[357651231,1744273838378,-324.14143676,0.00035616,7]
[357651232,1744273838393,-233.94578185,0.00035616,7]
[357651233,1744273838402,-578.90566857,0.00035616,7]
[357651234,1744273838411,-578.90566857,0.00035616,7]
[357651235,1744273838420,-396.15659411,0.00035616,7]
[357651236,1744273838430,-500.0,0.00035616,7]
[357651237,1744273838440,-300.02,0.00035948,5]
[357651238,1744273838450,-300.09,0.00035948,5]
[357651239,1744273838459,-310.0562869,0.00036251,2]
[357651457,1744273840466,-926.8737131,0.00036251,2]
[357651460,1744273840476,-188.01072,0.0003683,60]
[357651463,1744273840485,-445.3,0.00036871,2]
[357651465,1744273840497,-200.0,0.00036883,7]
[357651468,1744273840506,-303.39,0.00036948,5]
[357651471,1744273840515,-302.52,0.00036948,5]
[357651473,1744273840527,-3101.38260369,0.00037196,2]
[357651476,1744273840542,-6223.95118919,0.00037196,2]
[357651479,1744273840560,-7006.09724781,0.00037196,2]
[357651481,1744273840575,-3627.9803702,0.000372,2]
[357651484,1744273840584,-178542.2919458,0.0003727,2]
[357651486,1744273840594,-7127.58,0.00037296,2]
[357651489,1744273840603,-151.38,0.00037964,3]
[357651491,1744273840612,-200.0,0.00037988,2]
[357651494,1744273840621,-300.0,0.00038,2]
[357651496,1744273840631,-200.0,0.00038072,2]
[357651499,1744273840640,-1768.0,0.00038152,2]
[357651501,1744273840649,-308.74,0.0003828,2]
[357651504,1744273840658,-186.63,0.00038315,2]
[357651507,1744273840667,-23900.0,0.00038325,2]
[357651508,1744273840677,-184.57,0.00038351,2]
[357651511,1744273840690,-160.72960824,0.00038356,2]
[357651513,1744273840699,-300.0,0.0003838,2]
[357651516,1744273840708,-150.0,0.00038416,2]
[357651519,1744273840717,-250.0,0.00038423,2]
[357651521,1744273840727,-272.89,0.00038443,2]
[357651524,1744273840736,-1236.93,0.00038515,2]
[357651527,1744273840745,-300.0,0.0003876,2]
[357651529,1744273840755,-160.5,0.00038973,2]
[357651532,1744273840765,-2726.98,0.00039007,2]
[357651535,1744273840775,-155.39,0.00039037,2]
[357651537,1744273840784,-230.7026,0.0003904,5]
[357651540,1744273840793,-2252.79,0.00039044,2]
[357651542,1744273840802,-1087.43,0.0003906,2]
[357651545,1744273840811,-1000.0,0.00039069,2]
[357651548,1744273840820,-300.0,0.0003914,2]
[357651551,1744273840829,-575.05,0.0003914,2]
[357651553,1744273840838,-262.693,0.00039214,54]
[357651556,1744273840847,-1151.74,0.00039214,2]
[357651558,1744273840856,-150.0,0.00039257,2]
[357651560,1744273840866,-3602.68,0.0003928,2]
[357651564,1744273840875,-178.32687399,0.00039291,2]
[357651567,1744273840884,-2000.0,0.00039328,120]
[357651571,1744273840894,-188.01072,0.0003933,65]
[357651575,1744273840903,-161.37,0.00039337,2]
[357651578,1744273840912,-203.16,0.00039338,2]
[357651581,1744273840921,-908.84,0.00039377,30]
[357651584,1744273840930,-300.0,0.0003952,2]
[357651587,1744273840939,-186.63,0.00039641,2]
[357651589,1744273840948,-11794.26925546,0.00039649,2]
[357651592,1744273840957,-30198.8,0.00039651,2]
[357651595,1744273840966,-155.91,0.00039658,2]
[357651597,1744273840975,-155.91,0.00039672,2]
[357651600,1744273840985,-168.48518084,0.00039673,5]
[357651603,1744273840994,-501.95943097,0.00039673,5]
[357651606,1744273841003,-500.0,0.00039673,5]
[357651608,1744273841012,-500.0,0.00039673,5]
[357651610,1744273841021,-500.0,0.00039673,5]
[357651612,1744273841031,-502.29282697,0.00039673,5]
[357651614,1744273841040,-567.33597221,0.00039673,5]
[357651616,1744273841049,-161.64136603,0.00039673,5]
[357651618,1744273841059,-502.26198351,0.00039673,5]
[357651620,1744273841068,-155.91,0.00039687,2]
[357651623,1744273841078,-1921.64,0.00039689,2]
[357651626,1744273841087,-155.91,0.00039701,2]
[357651629,1744273841096,-155.91,0.00039715,2]
[357651632,1744273841106,-155.91,0.00039729,2]
[357651635,1744273841115,-155.91,0.00039743,2]
[357651638,1744273841125,-155.91,0.00039757,2]
[357651641,1744273841135,-155.91,0.00039772,2]
[357651644,1744273841144,-155.91,0.00039786,2]
[357651647,1744273841153,-155.91,0.000398,2]
[357651649,1744273841162,-1000.0,0.00039806,2]
[357651652,1744273841172,-155.91,0.00039814,2]
[357651655,1744273841181,-155.91,0.00039828,2]
[357651658,1744273841191,-155.91,0.00039842,2]
[357651661,1744273841201,-155.91,0.00039857,2]
[357651664,1744273841210,-2739.14501343,0.00039899,2]
[357651667,1744273841219,-450.0,0.000399,4]
[357651670,1744273841228,-598.3720636,0.000399,50]
[357651673,1744273841238,-171.86426737,0.000399,2]
[357651675,1744273841247,-150.0,0.00039961,7]
[357651678,1744273841257,-150.0,0.00039961,7]
[357651681,1744273841266,-150.0,0.00039961,7]
[357651684,1744273841275,-150.0,0.00039961,7]
[357651713,1744273841486,-150.0,0.00039961,7]
[357651716,1744273841509,-153.932,0.00039961,7]
[357651718,1744273841519,-540.144209,0.00039973,5]
[357651720,1744273841528,-500.0,0.00039973,5]
[357651722,1744273841537,-186.63,0.0003998,2]
[357651724,1744273841546,-54519.7128746,0.0003999,4]
[357651725,1744273841555,-186.63,0.0003999,2]
[357651727,1744273841564,-151.62,0.0003999,2]
[357651729,1744273841573,-191.69,0.00039999,2]
[357651731,1744273841582,-1664.20639782,0.0004,20]
[357651733,1744273841592,-10063.89033196,0.0004,120]
[357651735,1744273841601,-510.465218,0.0004,10]
[357651737,1744273841610,-3436.29854163,0.0004,10]
[357651739,1744273841619,-5140.11756669,0.0004,30]
[357651741,1744273841628,-34874.71394032,0.0004,3]
[357651743,1744273841637,-6159.26298995,0.0004,30]
[357651745,1744273841647,-969.91,0.0004,30]
[357651747,1744273841655,-167.651937,0.0004,2]
[357651749,1744273841665,-43821.44018293,0.0004,30]
[357651751,1744273841674,-967.30713422,0.0004,20]
[357651753,1744273841684,-3039.03675546,0.0004,30]
[357651755,1744273841695,-220739.88365871,0.0004,30]
[357651757,1744273841705,-151.0,0.0004,14]
[357651759,1744273841714,-151.0,0.0004,14]
[357651761,1744273841723,-151.0,0.0004,14]
[357651763,1744273841733,-151.0,0.0004,14]
[357651765,1744273841743,-151.0,0.0004,14]
[357651767,1744273841752,-151.0,0.0004,14]
[357651769,1744273841760,-151.0,0.0004,14]
[357651771,1744273841772,-151.0,0.0004,14]
[357651773,1744273841782,-151.0,0.0004,14]
[357651776,1744273841791,-151.0,0.0004,14]
[357651779,1744273841800,-151.0,0.0004,14]
[357651782,1744273841812,-152.0,0.00040133,3]
[357651785,1744273841822,-308.74,0.00040194,2]
[357651787,1744273841831,-450.0,0.0004028,4]
[357651789,1744273841840,-2739.14501335,0.00040315,15]
[357651792,1744273841850,-481.0,0.0004066,4]
[357651795,1744273841860,-2739.14501335,0.0004073,15]
[357651798,1744273841869,-1500.90184,0.00040739,4]
[357651801,1744273841879,-1236.93,0.00040779,2]
[357651804,1744273841888,-152.0,0.000408,4]
[357651807,1744273841898,-800.0,0.000408,14]
[357651809,1744273841907,-44287.89550301,0.0004083,2]
[357651811,1744273841916,-458.0500012,0.00040837,2]
[357651813,1744273841925,-2154.73676907,0.00040889,16]
[357651816,1744273841935,-9086.61881243,0.0004089,4]
[357651819,1744273841945,-2154.73676906,0.00040895,16]
[357651822,1744273841954,-1600.0,0.000409,14]
[357651825,1744273841963,-2154.73676906,0.000409,16]
[357651828,1744273841973,-151.62,0.0004097,2]
[357651831,1744273841982,-153.876903,0.0004098,14]
[357651834,1744273841992,-151.0,0.0004098,14]
[357651836,1744273842001,-151.0,0.0004098,14]
[357651840,1744273842011,-151.0,0.0004098,14]
[357651843,1744273842020,-151.0,0.0004098,14]
[357651846,1744273842029,-226.311371,0.0004098,14]
[357651848,1744273842039,-151.0,0.0004098,14]
[357651852,1744273842049,-54519.7128746,0.0004098,4]
[357651855,1744273842059,-151.62,0.0004098,2]
[357651857,1744273842069,-151.62,0.0004098,2]
[357651860,1744273842079,-191.7,0.00040989,2]
[357651862,1744273842090,-27259.8564373,0.0004099,4]
[357651865,1744273842099,-2728.75212816,0.0004099,4]
[357651868,1744273842108,-54825.04003765,0.0004099,2]
[357651871,1744273842117,-467.03177066,0.0004099,2]
[357651874,1744273842127,-114938.51382492,0.0004099,2]
[357651877,1744273842136,-109039.425749,0.0004099,4]
[357651880,1744273842145,-106421.332998,0.0004099,4]
[357651883,1744273842155,-151.62,0.0004099,2]
[357651886,1744273842164,-151.62,0.0004099,2]
[357651889,1744273842175,-151.62,0.0004099,2]
[357651892,1744273842185,-151.62,0.0004099,2]
[357651895,1744273842195,-151.62,0.0004099,2]
[357651898,1744273842204,-151.62,0.0004099,2]
[357651901,1744273842214,-151.62,0.0004099,2]
[357651904,1744273842224,-151.0,0.0004099,14]
[357651907,1744273842233,-151.0,0.0004099,14]
[357651910,1744273842243,-151.0,0.0004099,14]
[357651913,1744273842252,-151.0,0.0004099,14]
[357651916,1744273842261,-926.94363458,0.0004099,7]
[357651919,1744273842270,-151.0,0.0004099,14]
[357651922,1744273842280,-151.0,0.0004099,14]
[357651925,1744273842289,-151.0,0.0004099,14]
[357651928,1744273842298,-151.0,0.0004099,14]
[357651931,1744273842307,-252.068774,0.0004099,14]
[357651934,1744273842316,-304.58,0.00040999,5]
[357651937,1744273842326,-851.39863834,0.00041,120]
[357651940,1744273842335,-946000.0,0.00041,120]
[357651943,1744273842344,-11213.42902811,0.00041,30]
[357651945,1744273842353,-151.0,0.00041,14]
[357651948,1744273842362,-151.0,0.00041,14]
[357651951,1744273842371,-151.0,0.00041,14]
[357651954,1744273842381,-151.0,0.00041,14]
[357651957,1744273842392,-151.0,0.00041,14]
[357651959,1744273842401,-151.0,0.00041,14]
[357651962,1744273842410,-151.0,0.00041,14]
[357651965,1744273842419,-2814.125721,0.00041,14]
[357651968,1744273842428,-2814.125721,0.00041,14]
[357651971,1744273842437,-2814.125721,0.00041,14]
[357651974,1744273842448,-2814.125721,0.00041,14]
[357651977,1744273842457,-198.962959,0.00041,14]
[357651980,1744273842466,-198.962959,0.00041,14]
[357651983,1744273842476,-92616.85995512,0.00041,60]
[357652044,1744273842916,-9096.64373114,0.00041,60]
[357652046,1744273842927,-8947.21879473,0.00041,60]
[357652048,1744273842938,-8943.78386462,0.00041,60]
[357652050,1744273842949,-9077.54866152,0.00041,60]
[357652053,1744273842960,-8943.84023489,0.00041,60]
[357652055,1744273842977,-24958.6490788,0.00041,60]
[357652133,1744273844398,-16331.43104065,0.00037719,2]
[357652134,1744273844632,-327166.4727742,0.00041,60]
[357652135,1744273844642,-151.0,0.00041,14]
[357652136,1744273844652,-151.0,0.00041,14]
[357652137,1744273844662,-151.0,0.00041,14]
[357652138,1744273844671,-151.0,0.00041,14]
[357652139,1744273844682,-151.0,0.00041,14]
[357652140,1744273844699,-373.134775,0.00041,14]
[357652141,1744273844709,-150.5,0.00041066,120]
[357652142,1744273844719,-500.0,0.00041073,5]
[357652143,1744273844728,-150.5,0.00041076,120]
[357652144,1744273844739,-150.5,0.00041086,120]
[357652145,1744273844749,-500.33769257,0.00041096,10]
[357652146,1744273844758,-150.0,0.00041096,2]
[357652147,1744273844770,-191.79490662,0.00041096,31]
[357652148,1744273844779,-2739.14501335,0.00041146,15]
[357652149,1744273844789,-166.66,0.00041307,2]
[357652150,1744273844798,-739.59478036,0.00041368,120]
[357652151,1744273844807,-300.0,0.000414,120]
[357652152,1744273844816,-151.041017,0.00041448,120]
[357652153,1744273844826,-152.0,0.00041466,5]
[357652154,1744273844835,-300.0,0.000415,90]
[357652155,1744273844844,-151.041017,0.00041548,120]
[357652156,1744273844854,-2739.14501335,0.00041561,15]
[357652157,1744273844863,-1609.0,0.000416,7]
[357652158,1744273844873,-151.041017,0.00041648,120]
[357652159,1744273844882,-151.62,0.0004169,2]
[357652160,1744273844892,-1539.0,0.000417,7]
[357652161,1744273844901,-1056.48684601,0.000417,10]
[357652162,1744273844911,-151.041017,0.00041748,120]
[357652163,1744273844921,-171.86426737,0.0004177,28]
[357652164,1744273844931,-156.041017,0.00041798,120]
[357652165,1744273844940,-2430.0,0.000418,7]
[357652166,1744273844951,-2500.0,0.000418,15]
[357652167,1744273844961,-188.01072,0.0004183,70]
[357652168,1744273844972,-151.041017,0.00041848,120]
[357652169,1744273844982,-150.0,0.0004187,2]
[357652170,1744273844991,-976.0022,0.0004188,2]
[357652171,1744273845001,-151.041017,0.00041898,120]
[357652172,1744273845010,-185.0,0.000419,35]
[357652173,1744273845020,-185.0,0.000419,45]
[357652174,1744273845030,-185.7192603,0.000419,16]
[357652175,1744273845039,-254.20739102,0.000419,16]
[357652176,1744273845048,-166.5796947,0.000419,5]
[357652177,1744273845058,-223.0,0.000419,2]
[357652178,1744273845068,-3300.0,0.000419,15]
[357652179,1744273845078,-46745.72239915,0.000419,30]
[357652180,1744273845087,-22206.77676052,0.000419,2]
[357652181,1744273845097,-302.22721318,0.000419,2]
[357652182,1744273845106,-476.82376045,0.000419,2]
[357652183,1744273845117,-151.041017,0.00041948,120]
[357652184,1744273845126,-150.0,0.00041948,2]
[357652185,1744273845136,-151.62,0.00041961,2]
[357652186,1744273845145,-330.0,0.0004197,120]
[357652187,1744273845155,-75702.880994,0.00041971,2]
[357652188,1744273845167,-81886.6807043,0.00041971,2]
[357652189,1744273845176,-150.0,0.00041975,2]
[357652191,1744273845186,-2739.14501335,0.00041977,15]
[357652192,1744273845197,-330.0,0.0004198,120]
[357652194,1744273845206,-151.0,0.00041989,14]
[357652195,1744273845215,-151.0,0.00041989,14]
[357652197,1744273845225,-151.0,0.00041989,14]
[357652198,1744273845234,-151.0,0.00041989,14]
[357652200,1744273845243,-2814.125721,0.00041989,14]
[357652201,1744273845252,-2814.125721,0.00041989,14]
[357652203,1744273845261,-198.962959,0.00041989,14]
[357652205,1744273845271,-198.962959,0.00041989,14]
[357652206,1744273845280,-151.0,0.00041989,14]
[357652208,1744273845289,-373.134775,0.00041989,14]
[357652209,1744273845298,-330.0,0.0004199,120]
[357652210,1744273845307,-151.0,0.0004199,14]
[357652211,1744273845316,-151.0,0.0004199,14]
[357652212,1744273845325,-151.0,0.0004199,14]
[357652213,1744273845335,-287.284704,0.0004199,14]
[357652214,1744273845344,-2814.125721,0.0004199,14]
[357652215,1744273845354,-2814.125721,0.0004199,14]
[357652216,1744273845364,-198.962959,0.0004199,14]
[357652217,1744273845374,-198.962959,0.0004199,14]
[357652218,1744273845384,-151.675985,0.0004199,14]
[357652219,1744273845393,-151.62,0.0004199,2]
[357652220,1744273845402,-151.62,0.0004199,2]
[357652221,1744273845411,-151.62,0.0004199,2]
[357652222,1744273845421,-151.62,0.0004199,2]
[357652223,1744273845430,-151.62,0.0004199,2]
[357652224,1744273845440,-151.62,0.0004199,2]
[357652225,1744273845451,-151.62,0.0004199,2]
[357652226,1744273845461,-151.62,0.0004199,2]
[357652227,1744273845470,-151.62,0.0004199,2]
[357652228,1744273845480,-151.62,0.0004199,2]
[357652229,1744273845489,-151.62,0.0004199,2]
[357652230,1744273845499,-151.62,0.0004199,2]
[357652231,1744273845508,-151.62,0.0004199,2]
[357652232,1744273845518,-151.62,0.0004199,2]
[357652233,1744273845527,-151.62,0.0004199,2]
[357652234,1744273845537,-151.62,0.0004199,2]
[357652235,1744273845546,-151.62,0.0004199,2]
[357652236,1744273845555,-926.94363458,0.0004199,7]
[357652237,1744273845565,-926.94363458,0.0004199,7]
[357652238,1744273845575,-373.134775,0.0004199,14]
[357652239,1744273845584,-700.0,0.00041999,120]
[357652240,1744273845595,-700.0,0.00041999,120]
[357652241,1744273845605,-700.0,0.00041999,120]
[357652242,1744273845615,-587.81167085,0.00041999,120]
[357652243,1744273845624,-150.0,0.00041999,120]
[357652244,1744273845633,-982.65031864,0.00041999,120]
[357652245,1744273845643,-276.688556,0.00041999,14]
[357652246,1744273845652,-1016.2257387,0.00041999,2]
[357652247,1744273845661,-151.0,0.00041999,14]
[357652248,1744273845671,-151.0,0.00041999,14]
[357652249,1744273845681,-297.14683636,0.00041999,120]
[357652250,1744273845691,-151.0,0.00041999,120]
[357652251,1744273845703,-151.0,0.00041999,120]
[357652252,1744273845712,-151.0,0.00041999,120]
[357652253,1744273845722,-151.0,0.00041999,120]
[357652254,1744273845732,-151.0,0.00041999,14]
[357652255,1744273845742,-151.0,0.00041999,120]
[357652256,1744273845751,-151.0,0.00041999,120]
[357652257,1744273845761,-151.0,0.00041999,120]
[357652258,1744273845771,-151.0,0.00041999,120]
[357652259,1744273845781,-151.0,0.00041999,120]
[357652260,1744273845790,-151.0,0.00041999,120]
[357652261,1744273845800,-151.0,0.00041999,14]
[357652262,1744273845809,-500.0,0.00041999,120]
[357652263,1744273845819,-518.5,0.00041999,120]
[357652264,1744273845829,-537.6845,0.00041999,120]
[357652265,1744273845838,-557.5788265,0.00041999,120]
[357652266,1744273845848,-578.20924308,0.00041999,120]
[357652267,1744273845857,-599.60298507,0.00041999,120]
[357652268,1744273845867,-621.78829552,0.00041999,120]
[357652269,1744273845877,-644.79446246,0.00041999,120]
[357652270,1744273845888,-668.65185757,0.00041999,120]
[357652271,1744273845898,-693.3919763,0.00041999,120]
[357652272,1744273845908,-719.04747942,0.00041999,120]
[357652273,1744273845918,-745.65223616,0.00041999,120]
[357652275,1744273845928,-773.2413689,0.00041999,120]
[357652276,1744273845937,-801.85129955,0.00041999,120]
[357652277,1744273845950,-831.51979763,0.00041999,120]
[357652278,1744273845960,-862.28603014,0.00041999,120]
[357652279,1744273845971,-894.19061326,0.00041999,120]
[357652280,1744273845981,-927.27566595,0.00041999,120]
[357652281,1744273845991,-961.58486559,0.00041999,120]
[357652282,1744273846001,-1500.0,0.00041999,120]
[357652283,1744273846011,-200.0,0.00041999,120]
[357652284,1744273846021,-207.4,0.00041999,120]
[357652285,1744273846032,-215.0738,0.00041999,120]
[357652286,1744273846041,-223.0315306,0.00041999,120]
[357652287,1744273846052,-231.28369723,0.00041999,120]
[357652288,1744273846062,-239.84119403,0.00041999,120]
[357652289,1744273846071,-248.71531821,0.00041999,120]
[357652290,1744273846081,-257.91778498,0.00041999,120]
[357652291,1744273846090,-267.46074303,0.00041999,120]
[357652292,1744273846101,-277.35679052,0.00041999,120]
[357652293,1744273846111,-287.61899177,0.00041999,120]
[357652294,1744273846120,-298.26089446,0.00041999,120]
[357652295,1744273846130,-309.29654756,0.00041999,120]
[357652296,1744273846139,-320.74051982,0.00041999,120]
[357652297,1744273846148,-332.60791905,0.00041999,120]
[357652298,1744273846157,-344.91441206,0.00041999,120]
[357652299,1744273846166,-357.6762453,0.00041999,120]
[357652300,1744273846176,-370.91026638,0.00041999,120]
[357652301,1744273846186,-384.63394623,0.00041999,120]
[357652302,1744273846196,-600.0,0.00041999,120]
[357652303,1744273846206,-172.641227,0.00041999,14]
[357652304,1744273846216,-151.0,0.00041999,14]
[357652305,1744273846226,-151.0,0.00041999,14]
[357652306,1744273846236,-2814.125721,0.00041999,14]
[357652307,1744273846246,-2814.125721,0.00041999,14]
[357652308,1744273846256,-150.0,0.00041999,30]
[357652309,1744273846265,-198.962959,0.00041999,14]
[357652310,1744273846274,-198.962959,0.00041999,14]
[357652311,1744273846284,-13577.4582491,0.00041999,2]
[357652312,1744273846293,-150.0,0.00041999,3]
[357652313,1744273846302,-150.0,0.00041999,3]
[357652314,1744273846312,-150.0,0.00041999,3]
[357652315,1744273846321,-150.0,0.00041999,3]
[357652316,1744273846331,-150.0,0.00041999,3]
[357652317,1744273846340,-150.0,0.00041999,3]
[357652318,1744273846350,-170.41766872,0.00041999,14]
[357652319,1744273846359,-157.0,0.00041999,14]
[357652320,1744273846369,-157.0,0.00041999,14]
[357652321,1744273846378,-5626.1635873,0.00041999,2]
[357652322,1744273846388,-151.0,0.00041999,14]
[357652323,1744273846398,-151.0,0.00041999,14]
[357652324,1744273846407,-151.0,0.00041999,14]
[357652325,1744273846416,-151.0,0.00041999,14]
[357652326,1744273846425,-151.0,0.00041999,14]
[357652327,1744273846434,-151.0,0.00041999,14]
[357652328,1744273846445,-328857.20583221,0.00042,5]
[357652331,1744273846561,-5536.6836,0.00042,5]
[357652339,1744273846664,-312.11590552,0.00042,5]
[357652360,1744273847260,-373.134775,0.00041999,14]
[357652361,1744273847269,-84064.11604847,0.00042,5]
[357652362,1744273847306,-430.0,0.00035616,30]